[Event "Titled Tuesday Blitz August 22 Late 2023"]
[White "Shuvalova, Polina"]
[Black "Lenderman, Aleksandr"]
[WhiteFideId "24171760"]
[BlackFideId "2021285"]
[WhiteElo "2659"]
[BlackElo "2847"]
[Result "1/2-1/2"]
[Round "5"]
[TimeControl "180+1"]
[Date "2023.08.22"]
[WhiteClock "0:01:12"]
[BlackClock "0:00:54"]
[Board "36"]

1. Nf3 {[%clk 0:03:00]}  e6 {[%clk 0:03:00]} 2. d4 {[%clk 0:02:59]}  d5 {[%clk 0:02:59]} 3. Bf4 {[%clk 0:02:59]}  Bd6 {[%clk 0:02:58]} 4. e3 {[%clk 0:02:58]}  Nf6 {[%clk 0:02:58]} 5. Nbd2 {[%clk 0:02:58]}  O-O {[%clk 0:02:58]} 6. Bd3 {[%clk 0:02:57]}  c5 {[%clk 0:02:59]} 7. dxc5 {[%clk 0:02:56]}  Bxc5 {[%clk 0:02:57]} 8. O-O {[%clk 0:02:56]}  Nc6 {[%clk 0:02:55]} 9. c4 {[%clk 0:02:55]}  Be7 {[%clk 0:02:49]} 10. Qe2 {[%clk 0:02:52]}  b6 {[%clk 0:02:44]} 11. Rac1 {[%clk 0:02:50]}  Bb7 {[%clk 0:02:44]} 12. Rfd1 {[%clk 0:02:50]}  Qe8 {[%clk 0:02:38]} 13. a3 {[%clk 0:02:48]}  Rd8 {[%clk 0:02:32]} 14. cxd5 {[%clk 0:02:42]}  Nxd5 {[%clk 0:02:32]} 15. Bg3 {[%clk 0:02:42]}  Rc8 {[%clk 0:02:17]} 16. Bb5 {[%clk 0:02:40]}  Nc7 {[%clk 0:02:12]} 17. Bxc7 {[%clk 0:02:33]}  Rxc7 {[%clk 0:02:12]} 18. Nd4 {[%clk 0:02:30]}  Nxd4 {[%clk 0:02:12]} 19. exd4 {[%clk 0:02:28]}  Qd8 {[%clk 0:02:12]} 20. Nf3 {[%clk 0:02:18]}  Rxc1 {[%clk 0:02:09]} 21. Rxc1 {[%clk 0:02:19]}  Bxf3 {[%clk 0:02:08]} 22. Qxf3 {[%clk 0:02:18]}  Qxd4 {[%clk 0:02:09]} 23. Qc3 {[%clk 0:02:11]}  Qxc3 {[%clk 0:01:54]} 24. Rxc3 {[%clk 0:02:10]}  Bf6 {[%clk 0:01:55]} 25. Rc2 {[%clk 0:02:09]}  Bd4 {[%clk 0:01:55]} 26. g3 {[%clk 0:02:08]}  g6 {[%clk 0:01:55]} 27. Kg2 {[%clk 0:02:08]}  Kg7 {[%clk 0:01:53]} 28. f4 {[%clk 0:02:08]}  Rd8 {[%clk 0:01:53]} 29. Rd2 {[%clk 0:02:06]}  f5 {[%clk 0:01:47]} 30. Bc4 {[%clk 0:02:03]}  Kf6 {[%clk 0:01:39]} 31. Kf3 {[%clk 0:02:01]}  h6 {[%clk 0:01:38]} 32. h4 {[%clk 0:01:58]}  Rd6 {[%clk 0:01:37]} 33. b3 {[%clk 0:01:53]}  e5 {[%clk 0:01:34]} 34. fxe5+ {[%clk 0:01:52]}  Kxe5 {[%clk 0:01:35]} 35. Re2+ {[%clk 0:01:52]}  Kf6 {[%clk 0:01:33]} 36. Rd2 {[%clk 0:01:52]}  a5 {[%clk 0:01:23]} 37. a4 {[%clk 0:01:52]}  Rd8 {[%clk 0:01:16]} 38. Rd1 {[%clk 0:01:47]}  g5 {[%clk 0:01:05]} 39. hxg5+ {[%clk 0:01:48]}  hxg5 {[%clk 0:01:06]} 40. Rd2 {[%clk 0:01:48]}  g4+ {[%clk 0:01:05]} 41. Kg2 {[%clk 0:01:47]}  Kg5 {[%clk 0:01:00]} 42. Rd1 {[%clk 0:01:44]}  Rd6 {[%clk 0:00:59]} 43. Bb5 {[%clk 0:01:27]}  Bc5 {[%clk 0:00:54]} 44. Rxd6 {[%clk 0:01:25]}  Bxd6 {[%clk 0:00:55]} 45. Bd7 {[%clk 0:01:21]}  f4 {[%clk 0:00:54]} 46. gxf4+ {[%clk 0:01:21]}  Kxf4 {[%clk 0:00:55]} 47. Bb5 {[%clk 0:01:21]}  g3 {[%clk 0:00:55]} 48. Bc4 {[%clk 0:01:21]}  Ke3 {[%clk 0:00:55]} 49. Bg8 {[%clk 0:01:21]}  Kd4 {[%clk 0:00:55]} 50. Bf7 {[%clk 0:01:17]}  Kc3 {[%clk 0:00:55]} 51. Bg8 {[%clk 0:01:15]}  Kb4 {[%clk 0:00:55]} 52. Bf7 {[%clk 0:01:13]}  b5 {[%clk 0:00:55]} 53. axb5 {[%clk 0:01:12]}  Kxb5 {[%clk 0:00:56]} 54. Bg8 {[%clk 0:01:12]}  Kb4 {[%clk 0:00:54]} 55. Bf7 {[%clk 0:01:12]}  a4 {[%clk 0:00:54]} 56. bxa4 {[%clk 0:01:12]}  Kxa4 {[%clk 0:00:55]} 57. Bd5 {[%clk 0:01:12]}  Ka5 {[%clk 0:00:54]} 58. Ba8 {[%clk 0:01:12]} 1/2-1/2


[Site "https://www.chess.com"]

[Event "Titled Tuesday Blitz August 22 Late 2023"]
[White "Gunduz, Umut Erdem"]
[Black "Diaz Camallonga, Carles"]
[WhiteFideId "6381383"]
[BlackFideId "22235256"]
[WhiteElo "2618"]
[BlackElo "2803"]
[Result "0-1"]
[Round "5"]
[TimeControl "180+1"]
[Date "2023.08.22"]
[WhiteClock "0:00:05"]
[BlackClock "0:00:11"]
[Board "42"]

1. e4 {[%clk 0:03:00]}  e6 {[%clk 0:02:59]} 2. d4 {[%clk 0:03:00]}  d5 {[%clk 0:02:59]} 3. Nc3 {[%clk 0:03:01]}  Bb4 {[%clk 0:02:59]} 4. exd5 {[%clk 0:03:01]}  exd5 {[%clk 0:02:58]} 5. Bd3 {[%clk 0:03:01]}  Nc6 {[%clk 0:02:58]} 6. a3 {[%clk 0:03:01]}  Bxc3+ {[%clk 0:02:58]} 7. bxc3 {[%clk 0:03:02]}  Nge7 {[%clk 0:02:58]} 8. Nf3 {[%clk 0:02:59]}  Bf5 {[%clk 0:02:55]} 9. Bf4 {[%clk 0:02:58]}  Qd7 {[%clk 0:02:54]} 10. O-O {[%clk 0:02:58]}  O-O {[%clk 0:02:54]} 11. Re1 {[%clk 0:02:56]}  Bxd3 {[%clk 0:02:52]} 12. cxd3 {[%clk 0:02:55]}  Ng6 {[%clk 0:02:52]} 13. Bg3 {[%clk 0:02:55]}  f6 {[%clk 0:02:51]} 14. Qb3 {[%clk 0:02:49]}  b6 {[%clk 0:02:49]} 15. c4 {[%clk 0:02:49]}  Na5 {[%clk 0:02:44]} 16. Qc3 {[%clk 0:02:46]}  Rac8 {[%clk 0:02:31]} 17. h3 {[%clk 0:02:39]}  Rfe8 {[%clk 0:02:24]} 18. Rxe8+ {[%clk 0:02:36]}  Qxe8 {[%clk 0:02:22]} 19. cxd5 {[%clk 0:02:35]}  Qd7 {[%clk 0:02:23]} 20. Rc1 {[%clk 0:02:30]}  Qxd5 {[%clk 0:02:22]} 21. Bxc7 {[%clk 0:02:29]}  Qd7 {[%clk 0:02:15]} 22. Qc2 {[%clk 0:02:16]}  Qf7 {[%clk 0:01:51]} 23. Nd2 {[%clk 0:02:07]}  Ne7 {[%clk 0:01:40]} 24. Qd1 {[%clk 0:01:49]}  Nd5 {[%clk 0:01:17]} 25. Bg3 {[%clk 0:01:49]}  Nc3 {[%clk 0:01:13]} 26. Rxc3 {[%clk 0:01:37]}  Rxc3 {[%clk 0:01:14]} 27. Ne4 {[%clk 0:01:38]}  Rc6 {[%clk 0:01:06]} 28. Qf3 {[%clk 0:01:33]}  Qd7 {[%clk 0:00:58]} 29. d5 {[%clk 0:01:32]}  Rc1+ {[%clk 0:00:51]} 30. Kh2 {[%clk 0:01:32]}  Nb3 {[%clk 0:00:49]} 31. d6 {[%clk 0:01:28]}  Nc5 {[%clk 0:00:34]} 32. Qe3 {[%clk 0:01:19]}  Rc2 {[%clk 0:00:32]} 33. Qd4 {[%clk 0:00:54]}  Ne6 {[%clk 0:00:29]} 34. Qd5 {[%clk 0:00:53]}  Rc8 {[%clk 0:00:27]} 35. Qf5 {[%clk 0:00:49]}  Rd8 {[%clk 0:00:24]} 36. h4 {[%clk 0:00:47]}  Nc5 {[%clk 0:00:20]} 37. Qd5+ {[%clk 0:00:47]}  Qf7 {[%clk 0:00:18]} 38. Qc6 {[%clk 0:00:45]}  Qb7 {[%clk 0:00:17]} 39. Qc7 {[%clk 0:00:41]}  Rd7 {[%clk 0:00:15]} 40. Qxb7 {[%clk 0:00:26]}  Nxb7 {[%clk 0:00:15]} 41. d4 {[%clk 0:00:25]}  Kf7 {[%clk 0:00:14]} 42. d5 {[%clk 0:00:19]}  h6 {[%clk 0:00:14]} 43. h5 {[%clk 0:00:20]}  f5 {[%clk 0:00:15]} 44. Nc3 {[%clk 0:00:17]}  Nxd6 {[%clk 0:00:15]} 45. f3 {[%clk 0:00:17]}  Nc4 {[%clk 0:00:15]} 46. a4 {[%clk 0:00:15]}  Ne3 {[%clk 0:00:15]} 47. d6 {[%clk 0:00:15]}  Nc4 {[%clk 0:00:16]} 48. Nb5 {[%clk 0:00:15]}  a6 {[%clk 0:00:16]} 49. Nd4 {[%clk 0:00:15]}  Nxd6 {[%clk 0:00:17]} 50. Nc6 {[%clk 0:00:13]}  Nc4 {[%clk 0:00:16]} 51. Nb8 {[%clk 0:00:13]}  Rd2 {[%clk 0:00:15]} 52. Bf4 {[%clk 0:00:12]}  Ra2 {[%clk 0:00:14]} 53. Nxa6 {[%clk 0:00:12]}  Rxa4 {[%clk 0:00:15]} 54. Nc7 {[%clk 0:00:13]}  Ra2 {[%clk 0:00:15]} 55. Kh3 {[%clk 0:00:11]}  Rb2 {[%clk 0:00:14]} 56. g4 {[%clk 0:00:11]}  fxg4+ {[%clk 0:00:14]} 57. fxg4 {[%clk 0:00:11]}  b5 {[%clk 0:00:15]} 58. Nd5 {[%clk 0:00:11]}  b4 {[%clk 0:00:15]} 59. Bc1 {[%clk 0:00:11]}  Rc2 {[%clk 0:00:14]} 60. Bxh6 {[%clk 0:00:08]}  b3 {[%clk 0:00:12]} 61. Bxg7 {[%clk 0:00:05]}  Kxg7 {[%clk 0:00:13]} 62. g5 {[%clk 0:00:06]}  b2 {[%clk 0:00:12]} 63. Nf4 {[%clk 0:00:05]}  b1=Q {[%clk 0:00:12]} 64. h6+ {[%clk 0:00:06]}  Kh7 {[%clk 0:00:12]} 65. Nh5 {[%clk 0:00:05]}  Qh1+ {[%clk 0:00:11]} 66. Kg4 {[%clk 0:00:06]}  Qd1+ {[%clk 0:00:11]} 67. Kh4 {[%clk 0:00:05]}  Rh2+ {[%clk 0:00:11]} 0-1


[Site "https://www.chess.com"]

[Event "Titled Tuesday Blitz August 22 Late 2023"]
[White "ProphetReborn"]
[Black "Leenhouts, Koen"]
[BlackFideId "1008439"]
[WhiteElo "2801"]
[BlackElo "2604"]
[Result "1-0"]
[Round "5"]
[TimeControl "180+1"]
[Date "2023.08.22"]
[WhiteClock "0:00:43"]
[BlackClock "0:00:05"]
[Board "43"]

1. d4 {[%clk 0:03:00]}  Nf6 {[%clk 0:02:58]} 2. c4 {[%clk 0:02:59]}  g6 {[%clk 0:02:58]} 3. Nc3 {[%clk 0:02:57]}  d5 {[%clk 0:02:58]} 4. Bf4 {[%clk 0:02:50]}  Bg7 {[%clk 0:02:57]} 5. e3 {[%clk 0:02:49]}  O-O {[%clk 0:02:56]} 6. Rc1 {[%clk 0:02:50]}  c6 {[%clk 0:02:53]} 7. Nf3 {[%clk 0:02:49]}  Bg4 {[%clk 0:02:47]} 8. Qb3 {[%clk 0:02:46]}  Qb6 {[%clk 0:02:31]} 9. Ne5 {[%clk 0:02:34]}  Be6 {[%clk 0:02:27]} 10. c5 {[%clk 0:02:33]}  Qxb3 {[%clk 0:02:22]} 11. axb3 {[%clk 0:02:34]}  Nh5 {[%clk 0:02:09]} 12. b4 {[%clk 0:02:33]}  a6 {[%clk 0:02:02]} 13. Be2 {[%clk 0:02:26]}  Nxf4 {[%clk 0:02:01]} 14. exf4 {[%clk 0:02:27]}  f6 {[%clk 0:01:55]} 15. Bg4 {[%clk 0:02:13]}  Bxg4 {[%clk 0:01:52]} 16. Nxg4 {[%clk 0:02:14]}  Nd7 {[%clk 0:01:52]} 17. O-O {[%clk 0:01:33]}  e5 {[%clk 0:01:51]} 18. fxe5 {[%clk 0:01:33]}  fxe5 {[%clk 0:01:52]} 19. Nxe5 {[%clk 0:01:30]}  Nxe5 {[%clk 0:01:53]} 20. dxe5 {[%clk 0:01:31]}  Bxe5 {[%clk 0:01:52]} 21. g3 {[%clk 0:01:29]}  Rae8 {[%clk 0:01:49]} 22. Kg2 {[%clk 0:01:27]}  Bxc3 {[%clk 0:01:43]} 23. bxc3 {[%clk 0:01:25]}  Re2 {[%clk 0:01:44]} 24. c4 {[%clk 0:01:24]}  dxc4 {[%clk 0:01:38]} 25. Rxc4 {[%clk 0:01:24]}  Rb2 {[%clk 0:01:38]} 26. Re4 {[%clk 0:01:23]}  Rf7 {[%clk 0:01:35]} 27. g4 {[%clk 0:01:21]}  Kg7 {[%clk 0:01:32]} 28. Kg3 {[%clk 0:01:22]}  Rb3+ {[%clk 0:01:20]} 29. f3 {[%clk 0:01:17]}  Rc3 {[%clk 0:01:20]} 30. h4 {[%clk 0:01:16]}  h6 {[%clk 0:01:18]} 31. Rf4 {[%clk 0:01:08]}  Rxf4 {[%clk 0:01:18]} 32. Kxf4 {[%clk 0:01:09]}  Rc4+ {[%clk 0:01:17]} 33. Ke5 {[%clk 0:01:10]}  Rxb4 {[%clk 0:01:17]} 34. Rd1 {[%clk 0:01:09]}  g5 {[%clk 0:01:06]} 35. Rd7+ {[%clk 0:01:07]}  Kg8 {[%clk 0:01:02]} 36. hxg5 {[%clk 0:01:04]}  hxg5 {[%clk 0:01:01]} 37. Kf6 {[%clk 0:01:05]}  Rf4+ {[%clk 0:00:56]} 38. Kxg5 {[%clk 0:01:05]}  Rxf3 {[%clk 0:00:56]} 39. Rxb7 {[%clk 0:01:06]}  Rc3 {[%clk 0:00:45]} 40. Kf6 {[%clk 0:01:06]}  Rf3+ {[%clk 0:00:39]} 41. Kg6 {[%clk 0:01:06]}  Kf8 {[%clk 0:00:27]} 42. Rb6 {[%clk 0:01:03]}  a5 {[%clk 0:00:26]} 43. Rxc6 {[%clk 0:01:03]}  a4 {[%clk 0:00:27]} 44. Ra6 {[%clk 0:00:57]}  a3 {[%clk 0:00:26]} 45. c6 {[%clk 0:00:57]}  Ke7 {[%clk 0:00:25]} 46. g5 {[%clk 0:00:50]}  Kd6 {[%clk 0:00:24]} 47. Kg7 {[%clk 0:00:50]}  Rc3 {[%clk 0:00:11]} 48. g6 {[%clk 0:00:46]}  Rxc6 {[%clk 0:00:11]} 49. Rxa3 {[%clk 0:00:45]}  Rc7+ {[%clk 0:00:11]} 50. Kh6 {[%clk 0:00:44]}  Ke6 {[%clk 0:00:09]} 51. g7 {[%clk 0:00:43]}  Rc8 {[%clk 0:00:05]} 52. Kh7 {[%clk 0:00:43]} 1-0


[Site "https://www.chess.com"]

[Event "Titled Tuesday Blitz August 22 Late 2023"]
[White "Przybylski, Wojciech"]
[Black "Gorovets, Andrey"]
[WhiteFideId "1117599"]
[BlackFideId "13504037"]
[WhiteElo "2579"]
[BlackElo "2797"]
[Result "0-1"]
[Round "5"]
[TimeControl "180+1"]
[Date "2023.08.22"]
[WhiteClock "0:00:00"]
[BlackClock "0:00:19"]
[Board "45"]

1. d4 {[%clk 0:03:00]}  Nf6 {[%clk 0:02:59]} 2. Nf3 {[%clk 0:03:00]}  e6 {[%clk 0:03:00]} 3. g3 {[%clk 0:03:00]}  b5 {[%clk 0:02:59]} 4. Bg2 {[%clk 0:03:00]}  Bb7 {[%clk 0:03:00]} 5. O-O {[%clk 0:03:00]}  c5 {[%clk 0:03:00]} 6. e3 {[%clk 0:03:00]}  Na6 {[%clk 0:02:57]} 7. Nbd2 {[%clk 0:02:59]}  Rc8 {[%clk 0:02:57]} 8. c3 {[%clk 0:02:58]}  Be7 {[%clk 0:02:56]} 9. Re1 {[%clk 0:02:58]}  O-O {[%clk 0:02:39]} 10. Qe2 {[%clk 0:02:57]}  Qb6 {[%clk 0:02:27]} 11. Nb3 {[%clk 0:02:53]}  c4 {[%clk 0:02:20]} 12. Nbd2 {[%clk 0:02:53]}  d5 {[%clk 0:02:16]} 13. Ne5 {[%clk 0:02:52]}  b4 {[%clk 0:02:16]} 14. Rb1 {[%clk 0:02:39]}  Qa5 {[%clk 0:02:12]} 15. cxb4 {[%clk 0:02:26]}  Qxa2 {[%clk 0:02:01]} 16. b5 {[%clk 0:02:18]}  Nc7 {[%clk 0:01:54]} 17. Nc6 {[%clk 0:01:57]}  Bxc6 {[%clk 0:01:33]} 18. bxc6 {[%clk 0:01:57]}  Na6 {[%clk 0:01:31]} 19. e4 {[%clk 0:01:52]}  Bb4 {[%clk 0:01:24]} 20. Qd1 {[%clk 0:01:27]}  Rxc6 {[%clk 0:01:14]} 21. exd5 {[%clk 0:00:58]}  Nxd5 {[%clk 0:01:01]} 22. Qc2 {[%clk 0:00:53]}  Ba5 {[%clk 0:00:53]} 23. Re5 {[%clk 0:00:31]}  Nab4 {[%clk 0:00:50]} 24. Qd1 {[%clk 0:00:31]}  Rfc8 {[%clk 0:00:40]} 25. Be4 {[%clk 0:00:28]}  c3 {[%clk 0:00:30]} 26. Bxh7+ {[%clk 0:00:03]}  Kxh7 {[%clk 0:00:30]} 27. Qh5+ {[%clk 0:00:03]}  Kg8 {[%clk 0:00:30]} 28. Re4 {[%clk 0:00:02]}  Nf6 {[%clk 0:00:25]} 29. Qb5 {[%clk 0:00:02]}  cxd2 {[%clk 0:00:24]} 30. Bxd2 {[%clk 0:00:02]}  Qxb1+ {[%clk 0:00:20]} 31. Re1 {[%clk 0:00:02]}  Qd3 {[%clk 0:00:20]} 32. Qxa5 {[%clk 0:00:02]}  Qxd2 {[%clk 0:00:20]} 33. Rf1 {[%clk 0:00:03]}  Qxd4 {[%clk 0:00:19]} 34. Qb5 {[%clk 0:00:03]}  Nd3 {[%clk 0:00:19]} 35. Qa4 {[%clk 0:00:00]}  Qxa4 {[%clk 0:00:19]} 0-1


[Site "https://www.chess.com"]

[Event "Titled Tuesday Blitz August 22 Late 2023"]
[White "Auger_Pi"]
[Black "Batsuren, Dambasuren"]
[BlackFideId "4902920"]
[WhiteElo "2575"]
[BlackElo "2796"]
[Result "0-1"]
[Round "5"]
[TimeControl "180+1"]
[Date "2023.08.22"]
[WhiteClock "0:00:47"]
[BlackClock "0:01:10"]
[Board "46"]

1. e4 {[%clk 0:03:00]}  c5 {[%clk 0:02:57]} 2. Nf3 {[%clk 0:03:00]}  e6 {[%clk 0:02:58]} 3. b3 {[%clk 0:02:59]}  Nc6 {[%clk 0:02:57]} 4. Bb2 {[%clk 0:02:59]}  Nf6 {[%clk 0:02:58]} 5. e5 {[%clk 0:02:59]}  Nd5 {[%clk 0:02:58]} 6. c4 {[%clk 0:02:58]}  Nc7 {[%clk 0:02:57]} 7. g3 {[%clk 0:02:58]}  Be7 {[%clk 0:02:48]} 8. Bg2 {[%clk 0:02:58]}  O-O {[%clk 0:02:49]} 9. O-O {[%clk 0:02:58]}  f6 {[%clk 0:02:47]} 10. Re1 {[%clk 0:02:58]}  fxe5 {[%clk 0:02:46]} 11. Nxe5 {[%clk 0:02:59]}  Nxe5 {[%clk 0:02:47]} 12. Bxe5 {[%clk 0:02:58]}  Bf6 {[%clk 0:02:48]} 13. d4 {[%clk 0:02:57]}  d6 {[%clk 0:02:41]} 14. Bxf6 {[%clk 0:02:27]}  Qxf6 {[%clk 0:02:41]} 15. Qd2 {[%clk 0:02:27]}  cxd4 {[%clk 0:02:39]} 16. Na3 {[%clk 0:02:27]}  e5 {[%clk 0:02:35]} 17. Rac1 {[%clk 0:02:26]}  Ne6 {[%clk 0:02:03]} 18. Nb5 {[%clk 0:02:23]}  Ng5 {[%clk 0:01:49]} 19. c5 {[%clk 0:01:55]}  Bh3 {[%clk 0:01:34]} 20. Bd5+ {[%clk 0:01:52]}  Kh8 {[%clk 0:01:32]} 21. f4 {[%clk 0:01:26]}  exf4 {[%clk 0:01:30]} 22. gxf4 {[%clk 0:01:24]}  Qf5 {[%clk 0:01:26]} 23. Qxd4 {[%clk 0:01:18]}  Qg4+ {[%clk 0:01:19]} 24. Kh1 {[%clk 0:01:19]}  Nf3 {[%clk 0:01:17]} 25. Qf2 {[%clk 0:01:08]}  Nxe1 {[%clk 0:01:16]} 26. Rxe1 {[%clk 0:01:09]}  Rxf4 {[%clk 0:01:13]} 27. Qe3 {[%clk 0:00:47]}  Raf8 {[%clk 0:01:10]} 0-1


[Site "https://www.chess.com"]

[Event "Titled Tuesday Blitz August 22 Late 2023"]
[White "Leiva, Gianmarco"]
[Black "Kashefi, Amir Hosein"]
[WhiteFideId "3804399"]
[BlackFideId "12557935"]
[WhiteElo "2750"]
[BlackElo "2569"]
[Result "1-0"]
[Round "5"]
[TimeControl "180+1"]
[Date "2023.08.22"]
[WhiteClock "0:01:05"]
[BlackClock "0:00:04"]
[Board "48"]

1. e4 {[%clk 0:03:00]}  c6 {[%clk 0:02:53]} 2. Nf3 {[%clk 0:03:00]}  d5 {[%clk 0:02:51]} 3. d3 {[%clk 0:03:00]}  dxe4 {[%clk 0:02:48]} 4. dxe4 {[%clk 0:03:01]}  Qxd1+ {[%clk 0:02:48]} 5. Kxd1 {[%clk 0:03:02]}  Bg4 {[%clk 0:02:47]} 6. Be2 {[%clk 0:03:02]}  Bxf3 {[%clk 0:02:47]} 7. Bxf3 {[%clk 0:03:02]}  e5 {[%clk 0:02:48]} 8. Be3 {[%clk 0:02:55]}  Nd7 {[%clk 0:02:48]} 9. Ke2 {[%clk 0:02:50]}  Bc5 {[%clk 0:02:47]} 10. Rd1 {[%clk 0:02:48]}  Bxe3 {[%clk 0:02:46]} 11. Kxe3 {[%clk 0:02:48]}  Nb6 {[%clk 0:02:45]} 12. a4 {[%clk 0:02:46]}  a5 {[%clk 0:02:42]} 13. Nd2 {[%clk 0:02:44]}  Nf6 {[%clk 0:02:40]} 14. Be2 {[%clk 0:02:40]}  Nfd7 {[%clk 0:02:36]} 15. Nb3 {[%clk 0:02:39]}  Ke7 {[%clk 0:02:35]} 16. g3 {[%clk 0:02:40]}  Rhd8 {[%clk 0:02:33]} 17. f4 {[%clk 0:02:40]}  f6 {[%clk 0:02:32]} 18. c3 {[%clk 0:02:34]}  Nf8 {[%clk 0:02:31]} 19. Nc5 {[%clk 0:02:34]}  Rxd1 {[%clk 0:02:18]} 20. Rxd1 {[%clk 0:02:34]}  Rb8 {[%clk 0:02:12]} 21. b4 {[%clk 0:02:24]}  axb4 {[%clk 0:02:11]} 22. cxb4 {[%clk 0:02:24]}  Nfd7 {[%clk 0:02:10]} 23. Nxd7 {[%clk 0:02:15]}  Nxd7 {[%clk 0:02:10]} 24. a5 {[%clk 0:02:16]}  Rd8 {[%clk 0:02:06]} 25. Rb1 {[%clk 0:02:00]}  Ra8 {[%clk 0:01:50]} 26. Bg4 {[%clk 0:01:58]}  Nf8 {[%clk 0:01:50]} 27. Bf5 {[%clk 0:01:56]}  g6 {[%clk 0:01:48]} 28. Bg4 {[%clk 0:01:56]}  g5 {[%clk 0:01:40]} 29. fxg5 {[%clk 0:01:51]}  fxg5 {[%clk 0:01:40]} 30. Bf5 {[%clk 0:01:51]}  h6 {[%clk 0:01:39]} 31. h4 {[%clk 0:01:52]}  gxh4 {[%clk 0:01:32]} 32. gxh4 {[%clk 0:01:52]}  Ne6 {[%clk 0:01:30]} 33. Rg1 {[%clk 0:01:52]}  Rf8 {[%clk 0:01:24]} 34. Rg6 {[%clk 0:01:48]}  Rf6 {[%clk 0:01:22]} 35. Rg8 {[%clk 0:01:48]}  Nd4 {[%clk 0:01:18]} 36. Rb8 {[%clk 0:01:47]}  Nxf5+ {[%clk 0:00:56]} 37. exf5 {[%clk 0:01:48]}  Rxf5 {[%clk 0:00:56]} 38. Rxb7+ {[%clk 0:01:48]}  Kd6 {[%clk 0:00:56]} 39. a6 {[%clk 0:01:41]}  Rf8 {[%clk 0:00:54]} 40. Rh7 {[%clk 0:01:39]}  Ra8 {[%clk 0:00:49]} 41. Ke4 {[%clk 0:01:25]}  Rxa6 {[%clk 0:00:47]} 42. Rxh6+ {[%clk 0:01:26]}  Kc7 {[%clk 0:00:47]} 43. Kxe5 {[%clk 0:01:26]}  Ra4 {[%clk 0:00:34]} 44. Rh7+ {[%clk 0:01:26]}  Kb6 {[%clk 0:00:32]} 45. Rh8 {[%clk 0:01:26]}  Kb7 {[%clk 0:00:31]} 46. h5 {[%clk 0:01:07]}  Rxb4 {[%clk 0:00:30]} 47. h6 {[%clk 0:01:08]}  Rh4 {[%clk 0:00:29]} 48. Kf5 {[%clk 0:01:05]}  c5 {[%clk 0:00:27]} 49. Kg5 {[%clk 0:01:06]}  Rh1 {[%clk 0:00:25]} 50. Rf8 {[%clk 0:01:05]}  Kc6 {[%clk 0:00:16]} 51. Rf4 {[%clk 0:01:05]}  Ra1 {[%clk 0:00:06]} 52. h7 {[%clk 0:01:05]}  Ra8 {[%clk 0:00:05]} 53. Kg6 {[%clk 0:01:02]}  Kb5 {[%clk 0:00:02]} 54. Kg7 {[%clk 0:01:03]}  Ra7+ {[%clk 0:00:03]} 55. Rf7 {[%clk 0:01:03]}  Ra8 {[%clk 0:00:03]} 56. Rf8 {[%clk 0:00:58]}  Ra7+ {[%clk 0:00:03]} 57. Kg6 {[%clk 0:00:58]}  Rxh7 {[%clk 0:00:03]} 58. Kxh7 {[%clk 0:00:59]}  c4 {[%clk 0:00:03]} 59. Kg6 {[%clk 0:00:59]}  c3 {[%clk 0:00:03]} 60. Kf5 {[%clk 0:00:59]}  Kc4 {[%clk 0:00:02]} 61. Ke4 {[%clk 0:01:00]}  c2 {[%clk 0:00:02]} 62. Rc8+ {[%clk 0:01:00]}  Kb3 {[%clk 0:00:03]} 63. Kd3 {[%clk 0:01:00]}  c1=Q {[%clk 0:00:02]} 64. Rxc1 {[%clk 0:01:01]}  Kb2 {[%clk 0:00:02]} 65. Rc3 {[%clk 0:01:02]}  Ka2 {[%clk 0:00:02]} 66. Kc4 {[%clk 0:01:02]}  Kb2 {[%clk 0:00:03]} 67. Kb4 {[%clk 0:01:03]}  Ka2 {[%clk 0:00:03]} 68. Rc2+ {[%clk 0:01:03]}  Ka1 {[%clk 0:00:04]} 69. Kb3 {[%clk 0:01:03]}  Kb1 {[%clk 0:00:04]} 70. Rc3 {[%clk 0:01:04]}  Ka1 {[%clk 0:00:04]} 71. Rc1# {[%clk 0:01:05]} 1-0


[Site "https://www.chess.com"]

[Event "Titled Tuesday Blitz August 22 Late 2023"]
[White "Roebers, Eline"]
[Black "Amburgy, Ryan"]
[WhiteFideId "1058401"]
[BlackFideId "30924820"]
[WhiteElo "2564"]
[BlackElo "2749"]
[Result "1-0"]
[Round "5"]
[TimeControl "180+1"]
[Date "2023.08.22"]
[WhiteClock "0:00:50"]
[BlackClock "0:00:00"]
[Board "49"]

1. e4 {[%clk 0:03:00]}  e5 {[%clk 0:03:00]} 2. Nf3 {[%clk 0:03:00]}  Nc6 {[%clk 0:03:00]} 3. Nc3 {[%clk 0:03:00]}  Nf6 {[%clk 0:03:00]} 4. a3 {[%clk 0:03:00]}  d5 {[%clk 0:02:44]} 5. Bb5 {[%clk 0:02:58]}  dxe4 {[%clk 0:02:22]} 6. Nxe5 {[%clk 0:02:55]}  Bd7 {[%clk 0:02:23]} 7. Nxc6 {[%clk 0:02:52]}  bxc6 {[%clk 0:02:21]} 8. Bc4 {[%clk 0:02:51]}  Bd6 {[%clk 0:02:17]} 9. O-O {[%clk 0:02:51]}  O-O {[%clk 0:02:16]} 10. h3 {[%clk 0:02:48]}  Bf5 {[%clk 0:02:09]} 11. d4 {[%clk 0:02:46]}  h6 {[%clk 0:01:59]} 12. f4 {[%clk 0:02:25]}  Re8 {[%clk 0:01:15]} 13. g4 {[%clk 0:02:10]}  Bc8 {[%clk 0:01:15]} 14. Be3 {[%clk 0:02:08]}  Bb7 {[%clk 0:01:11]} 15. Qe2 {[%clk 0:02:04]}  Nd5 {[%clk 0:01:10]} 16. Bxd5 {[%clk 0:01:59]}  cxd5 {[%clk 0:01:10]} 17. Qg2 {[%clk 0:01:57]}  c6 {[%clk 0:00:49]} 18. Rf2 {[%clk 0:01:42]}  Rb8 {[%clk 0:00:47]} 19. f5 {[%clk 0:01:36]}  Qf6 {[%clk 0:00:45]} 20. g5 {[%clk 0:01:31]}  hxg5 {[%clk 0:00:45]} 21. Bxg5 {[%clk 0:01:32]}  Qxd4 {[%clk 0:00:39]} 22. Rd1 {[%clk 0:01:32]}  Qe5 {[%clk 0:00:30]} 23. Bf4 {[%clk 0:01:23]}  Qxf4 {[%clk 0:00:30]} 24. Rxf4 {[%clk 0:01:22]}  Bxf4 {[%clk 0:00:31]} 25. Qg4 {[%clk 0:01:19]}  Be3+ {[%clk 0:00:29]} 26. Kh2 {[%clk 0:01:18]}  Bh6 {[%clk 0:00:16]} 27. Ne2 {[%clk 0:01:14]}  Bc8 {[%clk 0:00:14]} 28. b3 {[%clk 0:01:09]}  e3 {[%clk 0:00:11]} 29. Ng3 {[%clk 0:01:06]}  e2 {[%clk 0:00:10]} 30. Re1 {[%clk 0:01:04]}  Ba6 {[%clk 0:00:10]} 31. Nh5 {[%clk 0:00:58]}  Re4 {[%clk 0:00:09]} 32. Nf6+ {[%clk 0:00:58]}  Kf8 {[%clk 0:00:10]} 33. Nxe4 {[%clk 0:00:57]}  dxe4 {[%clk 0:00:10]} 34. Qxe4 {[%clk 0:00:57]}  Re8 {[%clk 0:00:09]} 35. Qxc6 {[%clk 0:00:56]}  Bf4+ {[%clk 0:00:10]} 36. Kg2 {[%clk 0:00:55]}  Bc8 {[%clk 0:00:00]} 37. Kf3 {[%clk 0:00:50]} 1-0


[Site "https://www.chess.com"]